fUSD/lending_fUSD_20240129
["ID","MTS","AMOUNT","RATE_DAILY","PERIOD"]
[312976625,1706560288089,-126.88806535,0.00039999,31]
[312976626,1706560288453,-644.96303708,0.000223,2]
[312976627,1706560288462,-495.6601203,0.000223,2]
[312976628,1706560288472,-707.52777568,0.00022301,2]
[312976629,1706560288485,-881.50405291,0.00022301,2]
[312976630,1706560288494,-8767.65094007,0.00022302,2]
[312976631,1706560288503,-1222.19572688,0.00022828,2]
[312976632,1706560288512,-412.0,0.00030017,5]
[312976633,1706560288522,-373.11193465,0.00039999,31]
[312976634,1706560288531,-598.24485002,0.00039999,31]
[312976635,1706560288540,-500.0,0.00039999,31]
[312976636,1706560288549,-500.0,0.00039999,31]
[312976637,1706560288558,-500.0,0.00039999,31]
[312976638,1706560288567,-500.0,0.00039999,31]
[312976639,1706560288577,-500.0,0.00039999,31]
[312976640,1706560288587,-224.04,0.00045149,2]
[312976641,1706560288596,-2308.50039723,0.00049367,10]
[312976642,1706560288606,-309.67998082,0.00052602,31]
[312976643,1706560288615,-500.0,0.00052876,31]
[312976644,1706560288625,-1467.78,0.0005315,31]
[312976645,1706560288634,-500.0,0.0005315,31]
[312976646,1706560288644,-1467.78,0.00053424,31]
[312976647,1706560288654,-500.0,0.00053424,31]
[312976648,1706560288663,-500.0,0.00053698,31]
[312976649,1706560288673,-1467.78,0.00053698,31]
[312976650,1706560288682,-500.0,0.00053698,31]
[312976651,1706560288692,-500.0,0.00053972,31]
[312976652,1706560288701,-1467.78,0.00053972,31]
[312976653,1706560288711,-546.17991501,0.00053972,31]
[312976654,1706560288721,-134263.14323173,0.00054,120]
[312976655,1706560288746,-203.53101686,0.000223,2]
[312976656,1706560288755,-4115.09115415,0.00054,120]
[312976657,1706560288768,-18480.78991837,0.00054,120]
[312976658,1706560288781,-729.03054546,0.00054,120]
[312976659,1706560288799,-1252.59332234,0.00054,120]
[312976660,1706560288816,-199.69563475,0.000223,2]
[312976661,1706560288825,-1676.04757962,0.00054,120]
[312976662,1706560289037,-25963.31822725,0.00054,120]
[312976663,1706560289048,-4500.0,0.00054,7]
[312976664,1706560289059,-1327.95,0.00054,25]
[312976665,1706560289069,-180.0,0.00054,2]
[312976666,1706560289079,-2176.71261362,0.00054,120]
[312976667,1706560289089,-13516.97826775,0.00054,120]
[312976668,1706560289124,-1483.02173225,0.00054,120]
[312976669,1706560289133,-2000.0,0.00054,120]
[312976670,1706560289143,-4359.76564006,0.00054,30]
[312976671,1706560289154,-335.62,0.00054,30]
[312976672,1706560289166,-285.938,0.00054,30]
[312976673,1706560289178,-2359.87234024,0.00054,30]
[312976674,1706560289190,-308.25,0.00054,30]
[312976675,1706560289982,-794.0033412,0.00054,30]
[312976676,1706560289995,-442.82396974,0.00054,30]
[312976677,1706560290007,-403.04925484,0.00054,30]
[312976678,1706560290085,183.42708155,0.00021638,2]
[312976679,1706560290526,155.0,0.00021638,2]
[312976680,1706560304566,181.09,0.00021689,2]
[312976681,1706560312459,2000.0,0.00021373,2]
[312976682,1706560365285,157.63,0.0001961,2]
[312976683,1706560396009,809.77,0.00021211,2]
[312976684,1706560412179,-526.33571764,0.00021745,2]
[312976685,1706560412200,-314.9861483,0.00021745,2]
[312976686,1706560412221,-7801.19292088,0.00021745,2]
[312976687,1706560412243,-197.40756613,0.00021746,2]
[312976688,1706560412263,-698.46857632,0.00021746,2]
[312976689,1706560412285,-5226.66521026,0.00021746,2]
[312976690,1706560412305,-4646.38858611,0.00021746,2]
[312976691,1706560412328,-181.09,0.00021749,2]
[312976692,1706560412350,-312.34542944,0.00021756,2]
[312976693,1706560412371,-10095.11984492,0.00021758,2]
[312976694,1706560471492,173.35124803,0.00021657,2]
[312976695,1706560522012,23900.0,0.00021086,2]
[312976696,1706560549294,250.0,0.00021086,2]
[312976697,1706560581901,166.32,0.00021068,2]
[312976698,1706560639872,200.0,0.00021068,2]
[312976699,1706560717799,162.52,0.00021069,2]
[312976700,1706560725233,162.98,0.00021262,2]
[312976701,1706560725449,162.98,0.0002132,2]
[312976702,1706560725678,162.98,0.00021379,2]
[312976703,1706560725889,162.98,0.00021437,2]
[312976704,1706560726089,162.98,0.00021495,2]
[312976705,1706560726301,162.98,0.00021554,2]
[312976706,1706560726721,162.98,0.00021612,2]
[312976707,1706560727297,162.98,0.0002167,2]
[312976708,1706560776751,507.58,0.00020998,2]
[312976709,1706560788522,164.66,0.00020998,2]
[312976710,1706560821350,-699.51309809,0.00021703,2]
[312976711,1706560821377,-197.40756613,0.00021704,2]
[312976712,1706560821404,-155.0,0.00021705,2]
[312976713,1706560821429,-174.41982976,0.00021706,2]
[312976714,1706560821456,-1713.14078343,0.00021706,2]
[312976715,1706560821485,-173.35124796,0.00021717,2]
[312976716,1706560821513,-162.98,0.00021729,2]
[312976717,1706560821539,-179.76545491,0.00021757,2]
[312976718,1706560821565,-355.70749331,0.00021757,2]
[312976719,1706560821592,-319.46379714,0.00021757,2]
[312976720,1706560821618,-283.66045305,0.00021757,2]
[312976721,1706560821645,-642.86831538,0.00021757,2]
[312976722,1706560821671,-1399.55391951,0.00021757,2]
[312976723,1706560821697,-5501.00385508,0.00021758,2]
[312976724,1706560821725,-16138.0667,0.00021758,2]
[312976725,1706560821751,-171.496,0.00021758,2]
[312976726,1706560821779,-173.35124796,0.00021777,2]
[312976727,1706560821804,-237.99,0.00021777,2]
[312976728,1706560821831,-162.98,0.00021787,2]
[312976729,1706560821858,-173.35124796,0.00021837,2]
[312976730,1706560821885,-162.98,0.00021845,2]
[312976731,1706560821911,-499.99,0.00021868,2]
[312976732,1706560821937,-16382.5094268,0.00021878,2]
[312976733,1706560821971,-173.35124796,0.00021898,2]
[312976734,1706560821998,-162.98,0.00021903,2]
[312976735,1706560822180,-3603.11831557,0.00021918,2]
[312976736,1706560824634,157.63,0.0001926,2]
[312976737,1706560851184,-6396.88168443,0.00021918,2]
[312976738,1706560851211,-250.0,0.00021918,2]
[312976739,1706560851239,-157.63,0.00021948,2]
[312976740,1706560851266,-173.35124796,0.00021958,2]
[312976741,1706560851294,-162.98,0.00021962,2]
[312976742,1706560868119,150.0,0.00021205,2]
[312976743,1706560888156,2000.0,0.00021198,2]
[312976744,1706560889463,155.0,0.00022,2]
[312976745,1706560900042,1713.14078343,0.00022,2]
[312976746,1706560919395,206.3669,0.00022,2]
[312976747,1706560944818,-1000.0,0.00022001,2]
[312976748,1706560944838,-933.6074,0.00022001,2]
[312976749,1706560944859,-2066.3926,0.00022001,2]
[312976770,1706560965641,251.67421388,0.000219,2]
[312976772,1706561023452,3382.9751703,0.00022,2]
[312976775,1706561032007,544.45125247,0.00021119,2]
[312976780,1706561056136,391.83,0.00021088,2]
[312976781,1706561064896,385.21961048,0.00021339,2]
[312976790,1706561192671,1000.0,0.00021102,2]
[312976802,1706561195658,182.56,0.00021102,2]
[312976803,1706561213926,222.23,0.00021089,2]
[312976806,1706561234134,161.8,0.00021238,2]
[312976807,1706561234353,161.8,0.00021397,2]
[312976808,1706561234576,161.8,0.00021555,2]
[312976809,1706561250814,15346.77,0.00021074,2]
[312976810,1706561331045,159.77,0.00019113,2]
[312976811,1706561331306,159.77,0.00021377,2]
[312976812,1706561336451,166.44,0.00021038,2]
[312976817,1706561353492,2000.0,0.00021031,2]
[312976818,1706561395270,856.49,0.00021031,2]
[312976836,1706561431766,-530.52952845,0.00021712,2]
[312976837,1706561431778,-19.47047155,0.00021713,2]
[312976838,1706561431791,-142.32952845,0.00021713,2]
[312976839,1706561431800,-162.03829877,0.00021801,2]
[312976840,1706561431811,-74.63217278,0.00021871,2]
[312976841,1706561431823,-87.16782722,0.00021871,2]
[312976842,1706561431833,-414.46817278,0.00021899,2]
[312976843,1706561431852,-340.66,0.00021899,2]
[312976844,1706561431866,-3604.30110319,0.00021899,2]
[312976845,1706561431875,-996.29889681,0.000219,2]
[312976846,1706561431931,-860450.95716228,0.000219,2]
[312976851,1706561438546,-5477.50768754,0.000219,2]
[312976852,1706561438560,-363.3390023,0.000219,2]
[312976853,1706561438661,-438.47,0.000219,2]
[312976854,1706561438675,-1076.54155544,0.000219,2]
[312976855,1706561438688,-13441.21662406,0.000219,2]
[312976856,1706561438771,-645.88539279,0.000219,2]
[312976857,1706561438784,-32597.75117067,0.000219,2]
[312976858,1706561438797,-106450.18199687,0.000219,2]
[312976859,1706561438836,-37395.74123979,0.000219,2]
[312976860,1706561438845,-1691.88156675,0.000219,2]
[312976861,1706561438855,-344356.3549,0.00021901,2]
[312976862,1706561438865,-251.7004,0.00021901,2]
[312976863,1706561438875,-152.57302549,0.00021901,2]
[312976864,1706561438884,-500.0,0.00021918,2]
[312976865,1706561438893,-168.71400769,0.00021918,2]
[312976867,1706561438902,-500.0,0.00021918,2]
[312976868,1706561438912,-500.0,0.00021918,2]
[312976870,1706561438921,-555.64786996,0.00021918,2]
[312976872,1706561438930,-196.02344921,0.00021918,2]
[312976875,1706561438940,-500.0,0.00021918,2]
[312976877,1706561438949,-500.0,0.00021918,2]
[312976878,1706561438958,-500.0,0.00021918,2]
[312976879,1706561438967,-500.0,0.00021918,2]
[312976880,1706561438976,-500.0,0.00021918,2]
[312976881,1706561438986,-500.0,0.00021918,2]
[312976882,1706561438994,-500.0,0.00021918,2]
[312976883,1706561439003,-500.0,0.00021918,2]
[312976884,1706561439013,-500.0,0.00021918,2]
[312976885,1706561439022,-500.0,0.00021918,2]
[312976886,1706561439031,-500.0,0.00021918,2]
[312976887,1706561439040,-500.0,0.00021918,2]
[312976888,1706561439049,-500.0,0.00021918,2]
[312976889,1706561439058,-500.0,0.00021918,2]
[312976890,1706561439067,-4641.48,0.00021918,2]
[312976891,1706561439077,-250.0,0.00021918,2]
[312976892,1706561439086,-152.57302533,0.00021957,2]
[312976893,1706561439095,-215.39252123,0.00021977,2]
[312976894,1706561439105,-155.51348707,0.00021999,2]
[312976895,1706561439114,-385.5449845,0.00021999,2]
[312976896,1706561439124,-354.42530625,0.00021999,2]
[312976897,1706561439134,-1963.42105427,0.00021999,2]
[312976898,1706561439145,-5211.21956191,0.00021999,2]
[312976899,1706561439155,-162.10429849,0.00021999,2]
[312976900,1706561439164,-3432.80188843,0.00021999,2]
[312976901,1706561439386,-701.01986545,0.00021999,2]
[312976902,1706561439396,-241.55857503,0.00021999,2]
[312976903,1706561439406,-62.90969737,0.00022,2]
[312976904,1706561439416,-338.8976,0.00022,2]
[312976905,1706561439425,-1632.45,0.00022,2]
[312976906,1706561439435,-206.3669,0.00022,2]
[312976907,1706561439444,-196.0145,0.00022,2]
[312976908,1706561439454,-1000.0,0.00022,2]
[312976909,1706561439463,-8390.8574,0.00022001,2]
[312976910,1706561439474,-1000.0,0.00022001,2]
[312976911,1706561439483,-1000.0,0.00022001,2]
[312976912,1706561439492,-81661.2101,0.00022001,2]
[312976913,1706561439501,-8350.3867,0.00022001,2]
[312976914,1706561439511,-1217.926,0.00022001,2]
[312976915,1706561439521,-2500.0,0.00022001,2]
[312976916,1706561439530,-801.86676888,0.00022001,2]
[312976917,1706561439539,-169.40558037,0.00022001,2]
[312976918,1706561439549,-6937.6857539,0.00022001,2]
[312976919,1706561439558,-152.57302533,0.00022013,2]
[312976920,1706561439568,-814.79715124,0.00022026,2]
[312976921,1706561439577,-4831.50665022,0.00022026,2]
[312976922,1706561439587,-161.8,0.00022029,2]
[312976923,1706561439596,-152.57302533,0.0002207,2]
[312976924,1706561439606,-4276.78305022,0.00022099,2]
[312976925,1706561439616,-155.0,0.00022099,2]
[312976926,1706561439626,-1256.24889353,0.00022099,2]
[312976927,1706561439636,-327.35251651,0.00022099,2]
[312976928,1706561439649,-269.20070026,0.00022099,2]
[312976929,1706561439659,-181.34205528,0.00022099,2]
[312976930,1706561439668,-158.5204331,0.00022099,2]
[312976931,1706561439678,-1835.16653807,0.00022099,2]
[312976932,1706561439689,-4706.9627137,0.000221,2]
[312976933,1706561439698,-3020.30323365,0.000221,2]
[312976934,1706561439707,-39338.543,0.00022101,2]
[312976935,1706561439716,-100000.0,0.00022101,2]
[312976936,1706561439726,-245000.0,0.00022102,2]
[312976937,1706561439736,-152.57302533,0.00022126,2]
[312976938,1706561439745,-500.0,0.00022151,2]
[312976939,1706561439755,-210.0,0.00022166,2]
[312976940,1706561439764,-152.57302533,0.00022182,2]
[312976941,1706561439773,-161.8,0.00022187,2]
[312976942,1706561439783,-610.1459295,0.00022198,5]
[312976943,1706561439792,-352.6615,0.00022202,2]
[312976944,1706561439802,-156.78738203,0.00022202,2]
[312976945,1706561439811,-164.34738147,0.00022202,2]
[312976946,1706561439820,-9114.9374,0.00022203,2]
[312976947,1706561439830,-152.57302533,0.00022238,2]
[312976948,1706561439840,-152.57302533,0.00022294,2]
[312976949,1706561439849,-242.79238309,0.00022298,2]
[312976950,1706561439858,-384.9164604,0.00022298,2]
[312976951,1706561439868,-181.55769288,0.00022298,2]
[312976952,1706561439877,-333.49163329,0.00022298,2]
[312976953,1706561439886,-193.62669506,0.00022298,2]
[312976954,1706561439897,-418.87172383,0.00022298,2]
[312976955,1706561439907,-156.00443668,0.00022298,2]
[312976956,1706561439916,-1943.3553205,0.00022298,2]
[312976957,1706561439925,-3411.90530858,0.00022299,2]
[312976958,1706561439934,-410.94296953,0.00022299,2]
[312976959,1706561439944,-535.55044895,0.00022299,2]
[312976960,1706561439953,-322.72479377,0.00022299,2]
[312976961,1706561439963,-3042.74399701,0.00022299,2]
[312976962,1706561439972,-212.07944382,0.00022299,2]
[312976963,1706561439982,-616.99470059,0.00022299,2]
[312976964,1706561439991,-157.19234731,0.000223,2]
[312976965,1706561440000,-318.39608403,0.000223,2]
[312976966,1706561440009,-187.14539073,0.000223,2]
[312976967,1706561440020,-249.44582608,0.000223,2]
[312976968,1706561440030,-163.79827886,0.000223,2]
[312976969,1706561440040,-201.2269708,0.000223,2]
[312976970,1706561440049,-871.66828875,0.000223,2]
[312976971,1706561440059,-481.02562885,0.000223,2]
[312976972,1706561440068,-181.65130825,0.000223,2]
[312976973,1706561440078,-2796.16067431,0.000223,2]
[312976975,1706561440087,-376.65343999,0.000223,2]
[312976976,1706561440096,-319.44822702,0.000223,2]
[312976977,1706561440106,-241.11896855,0.000223,2]
[312976978,1706561440115,-2675.32851584,0.000223,2]
[312976979,1706561440125,-228.31643771,0.000223,2]
[312976980,1706561440135,-759.81203869,0.000223,2]
[312976983,1706561440145,-507.63152252,0.000223,2]
[312976985,1706561440155,-851.01888412,0.00022309,2]
[312976986,1706561440164,-851.01888412,0.00022309,2]
[312976987,1706561440174,-161.8,0.00022345,2]
[312976988,1706561440187,-152.57302533,0.00022351,2]
[312976989,1706561440196,-300.0,0.00022402,2]
[312976990,1706561440205,-300.0,0.00022402,2]
[312976991,1706561440215,-404.55799692,0.00022402,2]
[312976992,1706561440224,-152.57302533,0.00022407,2]
[312976994,1706561440234,-152.57302533,0.00022463,2]
[312976995,1706561440243,-152.57302533,0.00022519,2]
[312976996,1706561440253,-152.57302533,0.00022575,2]
[312976997,1706561440263,-155.0,0.0002261,2]
[312976998,1706561440272,-152.57302533,0.00022631,2]
[312976999,1706561440282,-152.57302533,0.00022688,2]
[312977000,1706561440294,-222.23,0.00022733,2]
[312977001,1706561440305,-152.57302533,0.00022744,2]
[312977002,1706561440314,-152.57302533,0.000228,2]
[312977003,1706561440324,-506863.61444946,0.000229,2]
[312977004,1706561440333,-129656.51217511,0.000229,2]
[312977005,1706561440342,-155.86070401,0.000229,2]
[312977006,1706561440351,-1075.8816,0.00023,2]
[312977007,1706561440360,-159.77,0.00023641,2]
[312977008,1706561440369,-1000.0,0.0002374,2]
[312977009,1706561440379,-150.0,0.00024192,2]
[312977010,1706561440390,-150.0,0.00024192,2]
[312977011,1706561440399,-222.23,0.00024377,2]
[312977012,1706561440408,-635.59,0.00024384,2]
[312977013,1706561440417,-1098.89,0.00024384,2]
[312977014,1706561440426,-250.0,0.00024658,2]
[312977015,1706561440436,-155.86070398,0.00024785,2]
[312977016,1706561440445,-6937.68575384,0.00024956,2]
[312977017,1706561440455,-208.31498309,0.00025,2]
[312977018,1706561440464,-550.0,0.00025,3]
[312977019,1706561440476,-159.77,0.00025905,2]
[312977020,1706561440487,-222.23,0.00026021,2]
[312977021,1706561440497,-150.0,0.00026079,2]
[312977022,1706561440507,-1000.0,0.00026377,2]
[312977023,1706561440517,-162.03829877,0.00026461,3]
[312977024,1706561440526,-154.19383368,0.000269,2]
[312977025,1706561440535,-153.16,0.000269,2]
[312977026,1706561440544,-600.0,0.00027,3]
[312977027,1706561440553,-187.46,0.00027397,2]
[312977028,1706561440564,-155.86070398,0.00027569,2]
[312977029,1706561440575,-222.23,0.00027665,2]
[312977030,1706561440588,-686.04,0.00027671,2]
[312977031,1706561440599,-19176.38800721,0.000279,2]
[312977032,1706561440609,-6937.68575384,0.00027912,2]
[312977033,1706561440618,-159.77,0.00028169,2]
[312977034,1706561440630,-1400.80271199,0.00028695,6]
[312977035,1706561440641,-686.04,0.00028695,2]
[312977036,1706561440651,-650.0,0.00029,3]
[312977037,1706561440661,-235.91069741,0.00029,2]
[312977038,1706561440671,-1000.0,0.00029015,2]
[312977039,1706561440682,-222.23,0.00029309,2]
[312977040,1706561440694,-686.04,0.00029719,2]
[312977041,1706561440704,-4961.49630549,0.0003,4]
[312977042,1706561440713,-155.0,0.0003,2]
[312977043,1706561440722,-287.063683,0.0003,2]
[312977044,1706561440731,-4885.29235048,0.0003,4]
[312977045,1706561440740,-913.35829636,0.0003,4]
[312977046,1706561440750,-891.25504155,0.0003,4]
[312977047,1706561440758,-53164.3381304,0.0003,4]
[312977048,1706561440767,-801.86676887,0.00030311,2]
[312977049,1706561440776,-155.86070398,0.00030354,2]
[312977050,1706561440786,-159.77,0.00030433,2]
[312977051,1706561440795,-686.04,0.00030743,2]
[312977052,1706561440804,-6937.68575384,0.00030867,2]
[312977053,1706561440813,-162.03829877,0.00031121,5]
[312977054,1706561440822,-166.32,0.00031601,2]
[312977055,1706561440831,-180.0,0.00031644,2]
[312977056,1706561440840,-1000.0,0.00031653,2]
[312977057,1706561440849,-686.04,0.00031767,2]
[312977058,1706561440857,-8370.81495404,0.000318,2]
[312977059,1706561440866,-273.94515077,0.0003253,6]
[312977060,1706561440875,-186.91537641,0.0003253,6]
[312977061,1706561440884,-159.77,0.00032697,2]
[312977062,1706561440894,-2571.0,0.000328,2]
[312977063,1706561440903,-500.0,0.00032877,2]
[312977064,1706561440913,-500.0,0.00032877,2]
[312977065,1706561440922,-186.52,0.00032877,2]
[312977066,1706561440931,-155.86070398,0.00033138,2]
[312977067,1706561440941,-193.12631424,0.000334,4]
[312977068,1706561440951,-6937.68575384,0.00033822,6]
[312977069,1706561440962,-744.43267165,0.00034079,2]
[312977070,1706561440971,-1855.63103544,0.000349,2]
[312977071,1706561440981,-1855.63103534,0.000349,2]
[312977072,1706561440991,-1855.63103534,0.000349,2]
[312977073,1706561441002,-1855.63103534,0.000349,2]
[312977074,1706561441011,-1855.63103534,0.000349,2]
[312977075,1706561441021,-1855.63103534,0.000349,2]
[312977076,1706561441031,-1855.63103534,0.000349,2]
[312977077,1706561441042,-1855.63103534,0.000349,2]
[312977078,1706561441051,-1855.63103534,0.00034959,2]
[312977079,1706561441060,-159.77,0.00034961,2]
[312977080,1706561441069,-5000.0,0.00035,7]
[312977081,1706561441078,-345.60115126,0.00035,7]
[312977082,1706561441087,-1000.0,0.00035,5]
[312977083,1706561441096,-150.0,0.00035,10]
[312977084,1706561441105,-1174.62985108,0.00035,2]
[312977085,1706561441114,-458.4,0.000355,3]
[312977086,1706561441123,-458.4,0.000355,3]
[312977087,1706561441132,-458.4,0.000355,3]
[312977088,1706561441141,-458.4,0.000355,3]
[312977089,1706561441151,-458.4,0.000355,3]
[312977090,1706561441160,-458.4,0.000355,3]
[312977091,1706561441169,-458.4,0.000355,3]
[312977092,1706561441180,-458.4,0.000355,3]
[312977093,1706561441189,-458.4,0.000355,3]
[312977094,1706561441198,-458.4,0.000355,3]
[312977095,1706561441207,-458.4,0.000355,3]
[312977096,1706561441216,-458.4,0.000355,3]
[312977097,1706561441226,-458.4,0.000355,3]
[312977098,1706561441235,-458.4,0.000355,3]
[312977099,1706561441245,-458.4,0.000355,3]
[312977101,1706561441254,-458.4,0.000355,3]
[312977103,1706561441263,-458.4,0.000355,3]
[312977105,1706561441273,-458.4,0.000355,3]
[312977107,1706561441282,-458.4,0.000355,3]
[312977109,1706561441292,-458.4,0.000355,3]
[312977111,1706561441302,-635.59,0.00035616,2]
[312977113,1706561441311,-1098.89,0.00035616,2]
[312977115,1706561441320,-164.76,0.000357,7]
[312977117,1706561441329,-162.03829877,0.00035781,7]
[312977119,1706561441338,-155.86070398,0.00035922,2]
[312977121,1706561441347,-150.0,0.0003631,7]
[312977123,1706561441356,-1855.63103534,0.00036579,2]
[312977125,1706561441365,-6937.68575384,0.00036778,9]
[312977127,1706561441374,-2761.38307187,0.00037,5]
[312977129,1706561441384,-159.77,0.00037225,2]
[312977131,1706561441393,-210.0,0.00037738,2]
[312977133,1706561441401,-238.46664625,0.00037897,2]
[312977135,1706561441411,-564.94798829,0.00037899,28]
[312977137,1706561441420,-215.0,0.000379,2]
[312977139,1706561441429,-644287.073101,0.000379,2]
[312977141,1706561441439,-383.20087159,0.00037999,2]
[312977143,1706561441448,-3140.78338318,0.00038063,2]
[312977145,1706561441458,-814.79715124,0.00038063,2]
[312977146,1706561441467,-4831.50665021,0.00038063,2]
[312977147,1706561441477,-1855.63103534,0.00038198,2]
[312977148,1706561441488,-1000.0,0.000384,2]
[312977149,1706561441498,-500.0,0.000384,2]
[312977150,1706561441507,-4495.03986899,0.000385,7]
[312977151,1706561441517,-801.86676887,0.00038622,12]
[312977152,1706561441526,-17579.57799632,0.00038668,19]
[312977153,1706561441535,-2275.38084864,0.00038668,2]
[312977154,1706561441544,-2517.0245025,0.00038668,2]
[312977155,1706561441552,-155.86070398,0.00038706,2]
[312977156,1706561441562,-155.58889881,0.000388,2]
[312977157,1706561441571,-155.58889873,0.000388,2]
[312977158,1706561441580,-155.58889873,0.000388,2]
[312977159,1706561441590,-155.58889873,0.000388,2]
[312977160,1706561441598,-155.58889873,0.000388,2]
[312977161,1706561441607,-155.58889873,0.000388,2]
[312977162,1706561441618,-155.58889873,0.000388,2]
[312977163,1706561441628,-155.58889873,0.000388,2]
[312977164,1706561441638,-155.58889873,0.000388,2]
[312977165,1706561441649,-155.58889873,0.000388,2]
[312977166,1706561441659,-155.58889873,0.000388,2]
[312977167,1706561441668,-155.58889873,0.000388,2]
[312977168,1706561441678,-155.58889873,0.000388,2]
[312977169,1706561441688,-155.58889873,0.000388,2]
[312977170,1706561441699,-155.58889873,0.000388,2]
[312977171,1706561441709,-230.85003975,0.0003888,2]
[312977172,1706561441718,-230.85003972,0.0003888,2]
[312977173,1706561441728,-230.85003972,0.0003888,2]
[312977174,1706561441738,-230.85003972,0.0003888,2]
[312977175,1706561441747,-230.85003972,0.0003888,2]
[312977176,1706561441756,-282.60808243,0.0003898,2]
[312977177,1706561441765,-1431.73512433,0.00039,2]
[312977178,1706561441774,-621.60218478,0.00039,4]
[312977179,1706561441782,-978.30213314,0.00039,4]
[312977180,1706561441791,-1196.9063526,0.00039,3]
[312977181,1706561441800,-159.77,0.00039488,2]
[312977182,1706561441809,-6937.68575384,0.00039733,13]
[312977183,1706561441818,-1855.63103534,0.00039818,2]
[312977184,1706561441827,-1808.82,0.00039999,5]
[312977185,1706561442010,-150.0,0.00039999,2]
[312977186,1706561442019,-150.0,0.00039999,2]
[312977187,1706561442029,-50000.0,0.0004,30]
[312977188,1706561442040,-288.7522356,0.0004,4]
[312977189,1706561442051,-1086.74219428,0.0004,4]
[312977190,1706561442061,-22076.99674252,0.0004,4]
[312977191,1706561442071,-1605.74091331,0.0004,4]
[312977192,1706561442081,-2274.86979912,0.0004,4]
[312977193,1706561442090,-18933.85621322,0.0004,5]
[312977194,1706561442099,-49735.3808414,0.0004,4]
[312977195,1706561442109,-713.30733836,0.0004,30]
[312977196,1706561442118,-155.0,0.0004,2]
[312977197,1706561442127,-1014.0,0.0004,9]
[312977198,1706561442136,-458.4,0.000402,4]
[312977199,1706561442146,-458.4,0.000402,4]
[312977200,1706561442155,-458.4,0.000402,4]
[312977201,1706561442164,-458.4,0.000402,4]
[312977202,1706561442178,-458.4,0.000402,4]
[312977203,1706561442187,-458.4,0.000402,4]
[312977204,1706561442196,-458.4,0.000402,4]
[312977205,1706561442205,-458.4,0.000402,4]
[312977206,1706561442214,-458.4,0.000402,4]
[312977207,1706561442224,-458.4,0.000402,4]
[312977208,1706561442233,-458.4,0.000402,4]
[312977209,1706561442242,-458.4,0.000402,4]
[312977210,1706561442252,-458.4,0.000402,4]
[312977211,1706561442262,-458.4,0.000402,4]
[312977212,1706561442271,-458.4,0.000402,4]
[312977213,1706561442280,-458.4,0.000402,4]
[312977214,1706561442289,-458.4,0.000402,4]
[312977215,1706561442298,-458.4,0.000402,4]
[312977216,1706561442307,-458.4,0.000402,4]
[312977217,1706561442316,-458.4,0.000402,4]
[312977218,1706561442326,-162.03829877,0.0004044,9]
[312977219,1706561442335,-401.0,0.00040616,5]
[312977220,1706561442344,-198.05,0.0004099,10]
[312977221,1706561442353,-361.06,0.0004099,10]
[312977222,1706561442362,-300.88,0.0004099,10]
[312977223,1706561442372,-50000.0,0.00041,31]
[312977224,1706561442381,-2569.43701716,0.00041,4]
[312977225,1706561442391,-150.0,0.00041096,2]
[312977226,1706561442404,-1000.0,0.000411,2]
[312977227,1706561442413,-887.34726202,0.00041217,13]
[312977228,1706561442422,-1855.63103534,0.00041438,5]
[312977229,1706561442431,-155.86070398,0.0004149,12]
[312977230,1706561442440,-159.77,0.00041752,2]
[312977231,1706561442450,-230.85003972,0.00041944,4]